bitfinex/quotes_SOLUSD_20250318
["timestamp","ask_amount","ask_price","bid_price","bid_amount"]
[1742258330468,12.3302147,127.4,127.39,0.03]
[1742258331363,12.3302147,127.41,127.39,0.03]
[1742258331972,12.3302147,127.42,127.39,0.03]
[1742258332172,12.3302147,127.42,127.4,18.64964886]
[1742258332357,20.2409147,127.43,127.4,18.64964886]
[1742258332776,12.3302147,127.42,127.4,18.64964886]
[1742258332982,12.3302147,127.41,127.39,138.13]
[1742258333438,12.3302147,127.41,127.4,18.64964886]
[1742258334061,7.9107,127.43,127.4,18.64964886]
[1742258334265,20.2409147,127.43,127.4,18.64964886]
[1742258334566,12.3302147,127.42,127.4,18.64964886]
[1742258334767,20.2409147,127.43,127.4,18.64964886]
[1742258335572,12.3302147,127.42,127.4,18.64964886]
[1742258335755,20.2409147,127.43,127.4,18.64964886]
[1742258336969,0.063,127.41,127.4,18.64964886]
[1742258339972,0.063,127.41,127.4,165.16749514]
[1742258344363,0.063,127.41,127.4,156.74964886]
[1742258347464,0.063,127.41,127.4,164.59884886]
[1742258348091,0.063,127.41,127.4,177.49770984]
[1742258349587,0.063,127.41,127.4,177.52770984]
[1742258349783,0.063,127.41,127.4,156.77964886]
[1742258350584,12.3932147,127.41,127.4,0.03]
[1742258351676,20.2418147,127.41,127.4,0.03]
[1742258354976,12.3932147,127.41,127.4,0.03]
[1742258355179,0.063,127.41,127.4,0.03]
[1742258359869,0.063,127.41,127.4,25.45964886]
[1742258362201,0.063,127.41,127.4,163.55964886]
[1742258367105,0.063,127.41,127.4,18.67964886]
[1742258367291,12.3932147,127.41,127.4,18.67964886]
[1742258367493,12.3932147,127.41,127.4,0.03]
[1742258367690,20.2418147,127.41,127.4,0.03]
[1742258372496,0.063,127.41,127.4,0.03]
[1742258375990,0.063,127.41,127.4,169.10986356]
[1742258376198,0.063,127.41,127.4,175.88986356]
[1742258377012,0.063,127.41,127.4,163.55964886]
[1742258379502,0.063,127.41,127.4,183.73906356]
[1742258379703,0.063,127.41,127.4,184.30770984]
[1742258381501,0.063,127.41,127.4,184.16554827]
[1742258381918,0.063,127.41,127.4,184.30770984]
[1742258382915,0.063,127.41,127.4,164.12829514]
[1742258384001,0.063,127.41,127.4,184.30770984]
[1742258384709,0.063,127.41,127.4,164.12829514]
[1742258385225,0.063,127.41,127.4,171.97749514]
[1742258385525,0.063,127.41,127.4,184.30770984]
[1742258386499,0.063,127.41,127.4,171.97749514]
[1742258386924,0.063,127.41,127.4,164.12829514]
[1742258387928,0.063,127.41,127.4,171.97749514]
[1742258389130,0.063,127.41,127.4,184.30770984]
[1742258390032,0.063,127.41,127.4,171.97749514]
[1742258391421,0.063,127.41,127.4,164.12829514]
[1742258393335,0.063,127.41,127.4,171.97749514]
[1742258394039,0.063,127.41,127.4,184.30770984]
[1742258395539,0.063,127.41,127.4,185.84090984]
[1742258398529,0.063,127.41,127.4,187.27620923]
[1742258398731,0.063,127.45,127.44,19.21829514]
[1742258399040,0.063,127.45,127.44,227.17189287]
[1742258399224,0.063,127.45,127.44,225.60336864]
[1742258399432,0.063,127.45,127.44,227.03821753]
[1742258400218,0.063,127.45,127.44,185.56415873]
[1742258401346,0.063,127.45,127.44,234.88501753]
[1742258401747,0.063,127.45,127.44,546.88501753]
[1742258401933,0.063,127.45,127.44,497.56415873]
[1742258402246,0.063,127.45,127.44,177.43303559]
[1742258402541,0.063,127.45,127.44,177.71735873]
[1742258402742,0.063,127.45,127.44,170.95735873]
[1742258402943,0.063,127.45,127.44,177.71735873]
[1742258404536,0.063,127.45,127.44,165.38714403]
[1742258404739,0.063,127.45,127.44,165.24498246]
[1742258404942,0.063,127.45,127.44,165.38714403]
[1742258408524,12.3932147,127.45,127.44,18.64964886]
[1742258409438,12.3932147,127.45,127.43,0.03]
[1742258409648,12.3302147,127.44,127.43,0.03]
[1742258410049,63.2747735,127.44,127.43,0.03]
[1742258410434,71.1215735,127.44,127.43,0.03]
[1742258411233,21.8007147,127.44,127.43,0.03]
[1742258413237,13.9539147,127.44,127.43,0.03]
[1742258414136,21.8007147,127.44,127.43,0.03]
[1742258414454,13.9539147,127.44,127.43,0.03]
[1742258414654,9.4705,127.44,127.43,0.03]
[1742258414848,1.6237,127.44,127.43,0.03]
[1742258415048,9.4705,127.44,127.43,0.03]
[1742258415866,21.8007147,127.44,127.43,0.03]
[1742258416157,7.8468,127.44,127.43,0.03]
[1742258416854,20.2394147,127.45,127.43,0.03]
[1742258419538,12.3302147,127.44,127.43,0.03]
[1742258419734,13.8727147,127.44,127.43,0.03]
[1742258420846,1.5425,127.44,127.43,0.03]
[1742258423555,0.063,127.45,127.43,0.03]
[1742258424566,0.063,127.45,127.44,18.64964886]
[1742258425161,0.063,127.45,127.44,30.97986356]
[1742258426745,0.063,127.45,127.44,18.64964886]
[1742258439058,12.3932147,127.45,127.43,0.03]
[1742258439462,12.3302147,127.44,127.43,0.03]
[1742258440883,20.1770147,127.44,127.43,0.03]
[1742258442803,20.2400147,127.44,127.43,0.03]
[1742258456799,41.4264147,127.44,127.4,0.03]
[1742258456979,12.3302147,127.42,127.4,0.03]
[1742258457594,29.0962,127.44,127.4,0.03]
[1742258457595,12.3302147,127.41,127.4,0.03]
[1742258458701,20.1788147,127.41,127.4,0.03]
[1742258472115,20.1788147,127.41,127.4,0.0001]
[1742258472313,21.6881147,127.41,127.4,0.0001]
[1742258473292,22.25676098,127.41,127.4,0.0001]
[1742258473921,21.83027627,127.41,127.4,0.0001]
[1742258474105,22.25676098,127.41,127.4,0.0001]
[1742258475024,21.6881147,127.41,127.4,0.0001]
[1742258477501,20.1788147,127.41,127.4,0.0001]
[1742258483643,21.8079147,127.41,127.4,0.0001]
[1742258483829,22.37656098,127.41,127.39,0.0001]
[1742258484129,12.3302147,127.4,127.39,0.0001]
[1742258485117,20.1794147,127.4,127.39,0.0001]
[1742258502357,20.2424147,127.4,127.39,0.0001]
[1742258513272,0.063,127.4,127.39,0.0001]
[1742258515443,12.3932147,127.4,127.39,0.0001]
[1742258516942,20.2424147,127.4,127.39,0.0001]
[1742258523957,0.063,127.4,127.39,0.0001]
[1742258525658,12.3932147,127.4,127.39,0.0001]
[1742258526182,20.2424147,127.4,127.39,0.0001]
[1742258527272,28.6175147,127.4,127.39,0.0001]
[1742258533975,27.0024147,127.4,127.39,0.0001]
[1742258534171,20.2424147,127.4,127.39,0.0001]
[1742258534591,20.81106098,127.4,127.39,0.0001]
[1742258535900,22.36796098,127.4,127.39,0.0001]
[1742258538589,21.94147627,127.4,127.39,0.0001]
[1742258538979,22.36796098,127.4,127.39,0.0001]
[1742258541399,20.81106098,127.4,127.39,0.0001]
[1742258544713,20.2424147,127.4,127.39,0.0001]
[1742258576739,20.81106098,127.4,127.39,0.0001]
[1742258582828,20.81106098,127.4,127.37,0.0001]
[1742258582829,20.0,127.38,127.37,0.0001]
[1742258583034,88.4110735,127.38,127.37,0.0001]
[1742258584034,96.2615735,127.38,127.37,0.0001]
[1742258584961,96.83021978,127.38,127.34,0.03]
[1742258585136,12.3302147,127.35,127.33,2.8590343]
[1742258585341,39.0902147,127.34,127.33,2.8590343]
[1742258586138,46.9431147,127.34,127.33,2.8590343]
[1742258586949,46.9431147,127.34,127.33,3.43e-05]
[1742258593444,47.51176098,127.34,127.33,3.43e-05]
[1742258597580,47.51176098,127.34,127.33,0.0300343]
[1742258599473,47.36959941,127.34,127.33,0.0300343]
[1742258599653,47.51176098,127.34,127.33,0.0300343]
[1742258606876,47.51176098,127.34,127.33,3.43e-05]
[1742258607081,58.27348392,127.34,127.33,3.43e-05]
[1742258607989,27.8529,127.34,127.33,3.43e-05]
[1742258608378,7.8526,127.35,127.33,3.43e-05]
[1742258608585,20.0,127.34,127.33,3.43e-05]
[1742258608770,7.852,127.36,127.33,3.43e-05]
[1742258608972,7.8513,127.37,127.33,12.330249]
[1742258609785,0.063,127.34,127.33,12.330249]
[1742258610562,0.063,127.34,127.33,3.43e-05]
[1742258611181,0.063,127.34,127.33,12.330249]
[1742258611698,0.063,127.34,127.33,46.74069786]
[1742258612003,19.6866,127.4,127.35,7.8523]
[1742258612004,0.063,127.4,127.35,7.8523]
[1742258612302,0.063,127.4,127.38,12.3302147]
[1742258612877,0.063,127.4,127.39,18.7624147]
[1742258613089,0.063,127.4,127.39,46.33570984]
[1742258613302,0.063,127.41,127.4,20.17369514]
[1742258613481,0.063,127.41,127.4,32.50390984]
[1742258613904,0.063,127.43,127.4,32.50390984]
[1742258613905,0.063,127.43,127.4,169.64850984]
[1742258614102,0.063,127.43,127.42,30.97986356]
[1742258614300,0.063,127.43,127.41,13.9252147]
[1742258614495,0.063,127.43,127.42,18.64964886]
[1742258614998,0.063,127.43,127.41,1.595]
[1742258616221,0.063,127.43,127.4,157.1902147]
[1742258616405,0.063,127.43,127.4,144.86]
[1742258616715,0.063,127.43,127.4,157.1902147]
[1742258617214,0.063,127.43,127.41,18.64964886]
[1742258617399,0.063,127.43,127.41,30.97986356]
[1742258617706,0.063,127.43,127.41,18.64964886]
[1742258621214,0.063,127.43,127.42,12.61453784]
[1742258621512,0.063,127.44,127.43,18.64964886]
[1742258621691,0.063,127.45,127.44,18.64964886]
[1742258622607,0.063,127.45,127.43,18.64964886]
[1742258622798,12.3932147,127.45,127.42,6.518]
[1742258625111,0.063,127.45,127.42,6.518]
[1742258625308,12.3932147,127.45,127.42,6.518]
[1742258625503,0.063,127.45,127.43,18.64964886]
[1742258625703,20.063,127.45,127.43,18.64964886]
[1742258626314,0.063,127.45,127.43,30.97986356]
[1742258626693,0.063,127.45,127.44,37.73986356]
[1742258626987,0.063,127.45,127.44,25.40964886]
[1742258627191,0.063,127.45,127.44,337.40964886]
[1742258629601,0.063,127.45,127.44,25.40964886]
[1742258629808,0.063,127.45,127.44,18.64964886]
[1742258634212,12.3932147,127.45,127.43,0.03]
[1742258634416,32.3302147,127.44,127.43,0.03]
[1742258635295,40.1770147,127.44,127.43,0.03]
[1742258636117,20.0,127.44,127.43,0.03]
[1742258636324,12.3932147,127.45,127.43,0.03]
[1742258637098,12.3302147,127.44,127.43,0.03]
[1742258637507,20.1770147,127.44,127.43,0.03]
[1742258637713,89.4978735,127.44,127.43,0.03]
[1742258639035,40.1770147,127.44,127.43,0.03]
[1742258639625,89.4978735,127.44,127.43,0.03]
[1742258641021,89.68351978,127.44,127.37,18.64964886]
[1742258641222,12.3302147,127.38,127.36,6.3536]
[1742258641898,20.1809147,127.38,127.36,6.3536]
[1742258642106,12.3302147,127.37,127.35,18.64964886]
[1742258643123,19.27957226,127.36,127.33,3.43e-05]
[1742258643298,19.27957226,127.35,127.33,18.64968316]
[1742258644006,27.13197226,127.35,127.33,18.64968316]
[1742258644203,19.27957226,127.34,127.33,3.43e-05]
[1742258645809,27.13247226,127.34,127.33,3.43e-05]
[1742258650738,27.70111854,127.34,127.33,3.43e-05]
[1742258650949,46.9806908,127.34,127.33,3.43e-05]
[1742258651434,27.70111854,127.34,127.33,3.43e-05]
[1742258653420,53.4953908,127.34,127.33,3.43e-05]
[1742258654939,73.1277908,127.34,127.3,0.03]
[1742258655141,39.27957226,127.31,127.3,0.03]
[1742258655343,39.27957226,127.31,127.28,0.03]
[1742258655344,2.17024628,127.3,127.28,0.03]
[1742258655548,0.56864628,127.28,127.27,0.03]
[1742258655717,19.84821854,127.28,127.27,0.03]
[1742258656827,39.1277908,127.28,127.26,0.03]
[1742258657141,47.56455697,127.25,127.24,0.03]
[1742258657326,54.46671854,127.25,127.24,0.03]
[1742258657532,2.12714628,127.24,127.2,0.03]
[1742258657738,39.27957226,127.21,127.2,0.03]
[1742258657936,65.8877908,127.21,127.2,0.03]
[1742258658137,65.8877908,127.21,127.15,0.35300819]
[1742258658339,19.27957226,127.16,127.15,0.35300819]
[1742258661222,19.27957226,127.17,127.15,0.35300819]
[1742258661428,26.76,127.21,127.15,0.35300819]
[1742258661654,39.27957226,127.2,127.16,17.64964886]
[1742258661851,19.27957226,127.19,127.16,17.64964886]
[1742258662552,39.27957226,127.2,127.16,25.51324886]
[1742258662751,39.27957226,127.2,127.16,32.27324886]
[1742258662945,19.27957226,127.2,127.16,32.27324886]
[1742258663466,39.27957226,127.2,127.16,38.55804886]
[1742258664570,19.27957226,127.21,127.16,77.49782112]
[1742258664854,39.27957226,127.22,127.16,77.49782112]
[1742258665055,19.27957226,127.22,127.16,77.49782112]
[1742258665567,19.27957226,127.22,127.18,18.64964886]
[1742258665568,39.27957226,127.22,127.18,18.64964886]
[1742258666131,20.0,127.22,127.18,18.64964886]
[1742258666327,19.27957226,127.23,127.18,18.64964886]
[1742258666533,19.27957226,127.23,127.18,37.92922112]
[1742258666748,19.27957226,127.22,127.18,18.64964886]
[1742258666940,19.27957226,127.22,127.19,7.8622]
[1742258667738,39.27957226,127.22,127.19,7.8622]
[1742258668962,19.27957226,127.26,127.2,44.68922112]
[1742258669260,19.27957226,127.25,127.2,44.68922112]
[1742258669639,19.27957226,127.25,127.2,25.40964886]
[1742258670054,19.27957226,127.23,127.2,25.40964886]
[1742258671443,19.27957226,127.21,127.19,0.03]
[1742258672465,34.54912314,127.25,127.19,0.03]
[1742258672466,19.27957226,127.2,127.19,0.03]
[1742258672964,19.27957226,127.21,127.19,0.03]
[1742258673965,27.14067226,127.21,127.19,0.03]
[1742258674766,19.27957226,127.2,127.19,0.03]
[1742258675359,46.9893908,127.2,127.19,0.03]
[1742258677279,20.14216157,127.16,127.15,0.35300819]
[1742258677445,39.84821854,127.16,127.15,0.35300819]
[1742258679168,47.71231854,127.16,127.15,0.35300819]
[1742258679352,66.9918908,127.16,127.15,0.35300819]
[1742258679557,47.71231854,127.16,127.15,0.35300819]
[1742258680461,19.27957226,127.16,127.15,0.35300819]
[1742258680866,39.27957226,127.17,127.15,0.35300819]
[1742258681065,19.27957226,127.17,127.15,0.35300819]
[1742258681367,19.27957226,127.17,127.15,0.38300819]
[1742258681673,39.84821854,127.16,127.15,0.38300819]
[1742258681867,46.66821854,127.16,127.15,0.38300819]
[1742258682253,46.24173383,127.16,127.15,0.38300819]
[1742258683273,54.10583383,127.16,127.15,0.38300819]
[1742258683468,54.53231854,127.16,127.15,0.38300819]
[1742258684475,39.27957226,127.16,127.15,0.38300819]
[1742258685261,20.0,127.16,127.15,0.38300819]
[1742258685979,39.27957226,127.16,127.15,0.38300819]
[1742258686871,19.27957226,127.16,127.15,0.38300819]
[1742258687263,39.27957226,127.16,127.15,0.38300819]
[1742258687664,19.27957226,127.17,127.15,0.38300819]
[1742258687860,19.27957226,127.18,127.15,0.38300819]
[1742258688580,19.27957226,127.18,127.15,8.24760819]
[1742258691871,9.4419,127.2,127.15,8.24760819]
[1742258692064,19.27957226,127.18,127.15,8.24760819]
[1742258692460,19.27957226,127.18,127.15,19.03265705]
[1742258694188,27.14237226,127.18,127.15,19.03265705]
[1742258695973,19.27957226,127.18,127.15,19.03265705]
[1742258696283,27.14207226,127.19,127.15,19.03265705]
[1742258696788,27.14207226,127.19,127.15,26.89725705]
[1742258696979,19.27957226,127.19,127.15,26.89725705]
[1742258697376,19.27957226,127.2,127.15,26.89725705]
[1742258697579,19.27957226,127.2,127.15,28.45995705]
[1742258698080,19.27957226,127.19,127.15,28.45995705]
[1742258698272,19.27957226,127.2,127.15,47.73952931]
[1742258698474,19.27957226,127.21,127.16,6.0938]
[1742258698861,19.27957226,127.21,127.18,18.64964886]
[1742258699886,27.14057226,127.21,127.17,6.8]
[1742258700082,27.14057226,127.21,127.15,20.59535705]
[1742258700083,19.27957226,127.18,127.15,20.59535705]
[1742258700279,19.27957226,127.17,127.15,19.03265705]
[1742258700485,19.27957226,127.18,127.15,26.89735705]
[1742258700870,19.27957226,127.2,127.16,18.64964886]
[1742258701066,19.27957226,127.19,127.16,18.64964886]
[1742258701286,19.27957226,127.18,127.15,19.03265705]
[1742258701676,27.14197226,127.19,127.15,19.03265705]
[1742258703471,19.27957226,127.18,127.15,19.03265705]
[1742258704172,27.14247226,127.18,127.15,19.03265705]
[1742258704968,19.27957226,127.17,127.15,0.38300819]
[1742258705380,19.27957226,127.16,127.15,0.38300819]
[1742258706176,27.14367226,127.16,127.15,0.38300819]
[1742258707100,0.14216157,127.12,127.07,2.8590343]
[1742258707272,19.27957226,127.09,127.07,2.8590343]
[1742258708682,27.14797226,127.09,127.07,2.8590343]
[1742258708884,19.27957226,127.08,127.07,2.8590343]
[1742258709082,20.0,127.05,127.02,12.34191371]
[1742258709297,19.27957226,127.04,127.02,12.34191371]
[1742258709602,19.27957226,127.03,127.02,12.34191371]
[1742258709908,19.42173383,127.03,127.02,12.34191371]
[1742258710071,1.5743,127.06,127.02,12.34191371]
[1742258710072,27.8715,127.04,127.02,12.34191371]
[1742258710272,19.27957226,127.04,127.02,12.34191371]
[1742258710475,19.27957226,127.03,127.02,12.34191371]
[1742258711097,19.27957226,127.04,127.02,0.03]
[1742258713580,19.27957226,127.03,127.02,0.03]
[1742258713890,89.6698,127.07,127.02,0.03]
[1742258713891,19.27957226,127.04,127.02,0.03]
[1742258714602,19.27957226,127.06,127.02,18.67964886]
[1742258714798,19.27957226,127.07,127.02,37.95922112]
[1742258715391,19.27957226,127.07,127.02,44.85922112]
[1742258715796,20.0,127.08,127.02,44.85922112]
[1742258715983,19.27957226,127.08,127.03,19.5638954]
[1742258716188,19.27957226,127.09,127.05,18.64964886]
[1742258716384,19.27957226,127.09,127.04,37.92922112]
[1742258716602,19.27957226,127.09,127.05,7.8709]
[1742258718004,19.27957226,127.09,127.06,18.64964886]
[1742258718390,19.27957226,127.1,127.06,25.52964886]
[1742258718598,39.27957226,127.11,127.08,18.64964886]
[1742258718909,22.7888,127.15,127.08,18.64964886]
[1742258718910,19.27957226,127.12,127.08,18.64964886]
[1742258720502,19.27957226,127.11,127.08,26.51804886]
[1742258721008,19.27957226,127.12,127.08,26.51804886]
[1742258721311,19.27957226,127.15,127.1,18.64964886]
[1742258721492,19.27957226,127.15,127.11,18.64964886]
[1742258721686,19.27957226,127.16,127.12,18.64964886]
[1742258721891,1.5737,127.19,127.12,37.92922112]
[1742258722098,19.27957226,127.17,127.12,37.92922112]
[1742258722494,19.27957226,127.18,127.14,46.17824886]
[1742258722682,19.27957226,127.17,127.14,40.01274886]
[1742258722889,19.27957226,127.18,127.14,40.01274886]
[1742258723100,19.27957226,127.19,127.15,0.28432314]
[1742258723713,19.27957226,127.17,127.14,32.14744886]
[1742258723889,19.27957226,127.15,127.12,7.8664]
[1742258724210,34.08417226,127.2,127.11,24.87274886]
[1742258724211,19.27957226,127.13,127.11,24.87274886]
[1742258724384,19.27957226,127.13,127.11,6.2231]
[1742258724592,19.27957226,127.13,127.09,18.64964886]
[1742258725197,7.8648,127.15,127.09,18.64964886]
[1742258725404,19.27957226,127.11,127.09,18.64964886]
[1742258725689,19.27957226,127.12,127.09,18.64964886]
[1742258727112,30.96861733,127.12,127.09,18.64964886]
[1742258728311,30.96861733,127.12,127.08,6.2231]
[1742258728609,30.96861733,127.11,127.08,6.2231]
[1742258728808,30.96861733,127.1,127.06,6.88]
[1742258729024,30.96861733,127.09,127.06,18.64964886]
[1742258729192,30.96861733,127.08,127.06,18.64964886]
[1742258729734,30.96861733,127.07,127.03,6.93]
[1742258730197,6.88,127.12,127.04,18.64964886]
[1742258730399,30.96861733,127.09,127.04,18.64964886]
[1742258730912,30.96861733,127.09,127.04,49.61826619]
[1742258731309,30.96861733,127.08,127.04,18.64964886]
[1742258731621,30.96861733,127.08,127.04,330.64964886]
[1742258732198,30.96861733,127.09,127.04,361.61826619]
[1742258732400,30.96861733,127.1,127.04,361.61826619]
[1742258732712,30.96861733,127.1,127.05,30.96861733]
[1742258733317,30.96861733,127.1,127.04,361.61826619]
[1742258733524,30.96861733,127.1,127.04,330.64964886]
[1742258733525,30.96861733,127.09,127.04,330.64964886]
[1742258734519,30.96861733,127.08,127.04,18.64964886]
[1742258734728,30.96861733,127.07,127.04,18.64964886]
[1742258734918,1.6362,127.1,127.04,18.64964886]
[1742258735116,30.96861733,127.08,127.04,18.64964886]
[1742258735320,30.96861733,127.09,127.04,18.64964886]
[1742258736107,7.869,127.08,127.04,18.64964886]
[1742258738430,30.96861733,127.08,127.04,18.64964886]
[1742258739027,30.96861733,127.08,127.04,18.67964886]
[1742258739209,30.96861733,127.06,127.04,0.03]
[1742258739920,30.96861733,127.05,127.04,0.03]
[1742258740630,38.83951733,127.05,127.04,0.03]
[1742258741314,7.8702,127.06,127.04,0.03]
[1742258741633,38.83881733,127.06,127.04,0.03]
[1742258743027,30.96861733,127.06,127.04,0.03]
[1742258743226,38.83851733,127.07,127.04,0.03]
[1742258743626,30.96861733,127.06,127.04,0.03]
[1742258744115,38.83851733,127.07,127.04,0.03]
[1742258744626,30.96861733,127.06,127.04,0.03]
[1742258746912,30.96861733,127.05,127.04,0.03]
[1742258748519,38.83951733,127.05,127.04,0.03]
[1742258749135,27.2494543,127.05,127.04,0.03]
[1742258750034,28.8805543,127.05,127.04,0.03]
[1742258752828,88.68,127.07,127.04,0.03]
[1742258753029,19.3785543,127.05,127.04,0.03]
[1742258753227,19.3785543,127.06,127.04,0.03]
[1742258753535,19.3785543,127.07,127.04,0.03]
[1742258753740,19.3785543,127.08,127.04,0.03]
[1742258754814,19.3785543,127.08,127.04,7.9015]
[1742258755518,7.8685,127.09,127.04,0.03]
[1742258755519,19.3785543,127.07,127.04,0.03]
[1742258756130,19.3785543,127.06,127.04,0.03]
[1742258757417,19.3785543,127.05,127.04,0.03]
[1742258758135,19.3785543,127.06,127.04,0.03]
[1742258758736,19.3785543,127.07,127.04,0.03]
[1742258758922,19.3785543,127.08,127.04,0.03]
[1742258759520,19.3785543,127.08,127.04,7.9015]
[1742258760129,19.3785543,127.06,127.04,7.9015]
[1742258760324,6.88,127.09,127.04,7.9015]
[1742258760848,19.3785543,127.08,127.04,7.9015]
[1742258761523,19.3785543,127.08,127.04,0.03]
[1742258761727,19.3785543,127.08,127.04,6.91]
[1742258763327,7.8678,127.1,127.04,6.91]
[1742258763328,19.3785543,127.07,127.04,6.91]
[1742258763527,19.3785543,127.07,127.04,14.7809]
[1742258765161,19.3785543,127.06,127.04,6.91]
[1742258765334,19.3785543,127.05,127.04,6.91]
[1742258765649,19.3785543,127.05,127.04,0.03]
[1742258766136,19.3785543,127.12,127.06,6.0825]
[1742258766341,19.3785543,127.12,127.07,19.3785543]
[1742258766958,19.3785543,127.13,127.08,19.3785543]
[1742258767133,19.3785543,127.14,127.09,19.3785543]
[1742258767542,19.3785543,127.13,127.08,19.3785543]
[1742258767740,19.3785543,127.13,127.09,18.64964886]
[1742258768338,19.3785543,127.13,127.09,26.51794886]
[1742258769540,19.3785543,127.13,127.09,18.64964886]
[1742258770452,101.74192314,127.18,127.09,18.64964886]
[1742258770453,19.3785543,127.16,127.11,38.02820316]
[1742258772551,19.3785543,127.14,127.1,6.9]
[1742258772759,19.3785543,127.13,127.1,6.9]
[1742258772936,19.3785543,127.13,127.08,138.1]
[1742258773255,19.3785543,127.11,127.07,1.6627]
[1742258774554,27.2452543,127.12,127.07,28.9108543]
[1742258775558,27.2452543,127.12,127.07,21.0412543]
[1742258777356,27.2452543,127.12,127.07,28.9108543]
[1742258777555,27.2452543,127.12,127.07,21.0412543]
[1742258780466,27.2452543,127.12,127.07,28.9108543]
[1742258781030,27.2452543,127.12,127.07,21.0412543]
[1742258781955,27.2452543,127.12,127.07,28.9108543]
[1742258782361,27.2452543,127.12,127.07,340.9108543]
[1742258782546,7.8667,127.12,127.07,333.0412543]
[1742258782855,27.2452543,127.12,127.07,333.0412543]
[1742258783043,27.2452543,127.12,127.07,339.9212543]
[1742258783574,27.2452543,127.12,127.07,27.9212543]
[1742258783735,27.2452543,127.12,127.07,8.5427]
[1742258786559,27.2452543,127.12,127.07,320.5427]
[1742258787262,19.3785543,127.1,127.07,6.88]
[1742258787432,19.3785543,127.1,127.04,0.03]
[1742258787640,19.3785543,127.05,127.04,0.03]
[1742258789062,27.2494543,127.05,127.04,0.03]
[1742258793655,99.35560165,127.09,127.04,0.03]
[1742258793865,7.869,127.08,127.04,0.03]
[1742258794056,27.2475543,127.08,127.04,0.03]
[1742258794464,19.3785543,127.08,127.04,0.03]
[1742258794757,39.3785543,127.08,127.04,312.03]
[1742258795057,19.3785543,127.07,127.04,0.03]
[1742258796271,19.3785543,127.05,127.04,0.03]
[1742258798079,27.2494543,127.05,127.04,0.03]
[1742258803779,27.3115543,127.07,127.04,0.03]
[1742258803980,0.063,127.07,127.04,0.03]
[1742258805077,19.4415543,127.07,127.04,0.03]
[1742258805261,27.3112543,127.07,127.04,0.03]
[1742258805975,0.063,127.07,127.04,0.03]
[1742258807075,0.063,127.07,127.04,27.2800543]
[1742258807785,0.063,127.07,127.05,19.3785543]
[1742258808184,0.063,127.07,127.04,27.2800543]
[1742258808681,0.063,127.07,127.04,0.03]
[1742258808863,19.4415543,127.07,127.04,0.03]
[1742258809063,7.9327,127.07,127.04,0.03]
[1742258809810,27.3112543,127.07,127.04,0.03]
[1742258810290,19.3785543,127.06,127.04,0.03]
[1742258810484,19.3785543,127.05,127.04,0.03]
[1742258810990,19.3785543,127.06,127.04,0.03]
[1742258811186,7.8709,127.05,127.04,0.03]
[1742258811366,27.2494543,127.05,127.04,0.03]
[1742258814083,7.8702,127.06,127.04,0.03]
[1742258814265,21.0007543,127.07,127.04,0.03]
[1742258814466,0.063,127.07,127.04,0.03]
[1742258817773,19.4415543,127.07,127.04,0.03]
[1742258818166,27.3117543,127.07,127.04,0.03]
[1742258818366,19.3785543,127.06,127.04,0.03]
[1742258820168,19.3785543,127.05,127.04,0.03]
[1742258820368,27.2487543,127.06,127.04,0.03]
[1742258821390,19.3785543,127.05,127.04,0.03]
[1742258822501,27.2494543,127.05,127.04,0.03]
[1742258825789,27.53377744,127.05,127.04,0.03]
[1742258827896,20.0,127.02,126.94,26.52734886]
[1742258828190,19.3785543,126.99,126.94,26.52734886]
[1742258828394,26.92,127.02,126.95,19.3785543]
[1742258828603,6.92,127.02,126.97,19.3785543]
[1742258828803,99.77540072,127.05,126.99,19.3785543]
[1742258828804,7.8709,127.05,126.99,19.3785543]
[1742258829022,19.3785543,127.04,126.99,19.3785543]
[1742258829194,27.2494543,127.05,127.0,19.3785543]
[1742258829383,28.8275543,127.06,127.01,19.3785543]
[1742258830003,20.9570543,127.06,127.01,27.2518543]
[1742258830217,28.8272543,127.06,127.01,27.2518543]
[1742258830581,19.3785543,127.05,127.01,7.8733]
[1742258830780,20.9570543,127.06,127.01,27.2518543]
[1742258830978,0.063,127.07,127.03,19.3785543]
[1742258831804,19.4415543,127.07,127.03,7.8721]